lending/lending_fUSD_20241211
["ID","MTS","AMOUNT","RATE_DAILY","PERIOD"]
[344999468,1733914240922,-500.0,0.00011097,2]
[344999469,1733914240931,-500.0,0.00011097,2]
[344999470,1733914240942,-500.0,0.00011097,2]
[344999471,1733914240951,-500.0,0.00011097,2]
[344999472,1733914240960,-500.0,0.00011097,2]
[344999473,1733914240970,-500.0,0.00011097,2]
[344999474,1733914240979,-500.0,0.00011097,2]
[344999475,1733914240988,-500.0,0.00011097,2]
[344999476,1733914240997,-500.0,0.00011097,2]
[344999477,1733914241006,-500.0,0.00011097,2]
[344999478,1733914241015,-282.21,0.00011097,2]
[344999479,1733914241025,-500.0,0.00011097,2]
[344999480,1733914241034,-500.0,0.00011097,2]
[344999481,1733914241043,-500.0,0.00011097,2]
[344999482,1733914241052,-500.0,0.00011097,2]
[344999483,1733914241061,-500.0,0.00011097,2]
[344999484,1733914241071,-1434.53,0.00011097,2]
[344999485,1733914241079,-1434.53,0.00011097,2]
[344999486,1733914241089,-1434.53,0.00011097,2]
[344999487,1733914241098,-1434.53,0.00011097,2]
[344999488,1733914241107,-500.0,0.00011097,2]
[344999489,1733914241116,-500.0,0.00011097,2]
[344999490,1733914241126,-2154.78625968,0.00011098,2]
[344999491,1733914241350,-4925.52846422,0.00011098,2]
[344999492,1733914241368,-1000.0,0.00011098,2]
[344999493,1733914241379,-1730.84596,0.00011098,2]
[344999494,1733914241390,-806.68461655,0.00011098,2]
[344999495,1733914241401,-1347.0,0.00011098,2]
[344999498,1733914243311,-346.98461568,0.00011097,2]
[344999499,1733914243323,-153.01538432,0.00011097,2]
[344999500,1733914243333,-9879.48097258,0.00011098,2]
[344999501,1733914243606,-629.84914587,0.00011098,2]
[344999502,1733914243734,-6182.64204682,0.00011098,2]
[344999510,1733914246203,-435.72564607,0.00011073,2]
[344999512,1733914246213,-500.0,0.00011097,2]
[344999514,1733914246225,-500.0,0.00011097,2]
[344999516,1733914246235,-500.0,0.00011097,2]
[344999518,1733914246244,-3072.45025386,0.00011098,2]
[344999524,1733914246341,-1178.596705,0.00011098,2]
[344999525,1733914246353,-496.38991799,0.00011098,2]
[344999526,1733914246490,-674.96819278,0.00011098,2]
[344999527,1733914246502,-5488.77275322,0.00011098,2]
[344999528,1733914246513,-2234.7000001,0.00011098,2]
[344999529,1733914246525,-251.17811751,0.00011098,2]
[344999530,1733914246540,-800.0,0.00011098,2]
[344999539,1733914818687,-5853.65637291,0.00015,20]
[344999541,1733914919075,1081.19,8.232e-05,2]
[344999542,1733914930115,-1172.55,0.00016658,30]
[344999543,1733914970175,-150.0,0.0001592,15]
[344999544,1733914974008,1059.90607527,0.0002,120]
[344999545,1733915008996,-500.64793291,0.000111,10]
[344999546,1733915039937,1113.92,0.00016658,30]
[344999547,1733915061407,-2400.0,0.00012999,10]
[344999558,1733915432499,-432.68940545,9.986e-05,2]
[344999559,1733915432512,-262.32321903,9.986e-05,2]
[344999560,1733915432521,-150.0,9.986e-05,2]
[344999561,1733915432531,-250.0,0.00010147,2]
[344999562,1733915432541,-458.5,0.00010186,2]
[344999563,1733915432552,-1000.0,0.00010214,2]
[344999564,1733915432561,-67.98737452,0.0001025,2]
[344999565,1733915432572,-98.67929214,0.0001025,2]
[344999566,1733915432582,-250.0,0.00010267,2]
[344999567,1733915432591,-278.44220144,0.0001045,2]
[344999568,1733915432658,-771.55779856,0.0001045,2]
[344999569,1733915432669,-1081.19,0.00010496,2]
[344999570,1733915432679,-362.039,0.0001055,2]
[344999571,1733915432688,-150.0,0.00010767,2]
[344999572,1733915432697,-435.83,0.000108,2]
[344999573,1733915432707,-150.0,0.000108,2]
[344999574,1733915432716,-150.0,0.00010914,2]
[344999575,1733915432726,-300.0,0.00010994,2]
[344999576,1733915432735,-1932.881,0.00010995,2]
[344999577,1733915432746,-175.665,0.00010995,2]
[344999578,1733915432755,-2500.0,0.00010998,2]
[344999579,1733915432766,-200.0,0.00011011,2]
[344999580,1733915432776,-1719.0,0.00011068,2]
[344999581,1733915432786,-500.0,0.00011073,2]
[344999582,1733915432796,-500.0,0.00011097,2]
[344999583,1733915432805,-200.0,0.00011097,2]
[344999584,1733915432815,-416.11362675,0.00011097,2]
[344999585,1733915432825,-500.0,0.00011097,2]
[344999587,1733915432834,-500.0,0.00011097,2]
[344999589,1733915432844,-500.0,0.00011097,2]
[344999591,1733915432853,-500.0,0.00011097,2]
[344999593,1733915432863,-520.00755075,0.00011097,2]
[344999595,1733915432873,-500.0,0.00011097,2]
[344999597,1733915432883,-500.0,0.00011097,2]
[344999599,1733915432896,-500.0,0.00011097,2]
[344999601,1733915432905,-500.0,0.00011097,2]
[344999603,1733915432915,-500.0,0.00011097,2]
[344999605,1733915432924,-193.10725563,0.00011097,2]
[344999607,1733915432934,-500.0,0.00011097,2]
[344999609,1733915432942,-500.0,0.00011097,2]
[344999611,1733915432952,-171.39288612,0.00011097,2]
[344999613,1733915432962,-185.42211856,0.00011097,2]
[344999615,1733915432971,-591.17,0.00011097,2]
[344999617,1733915432981,-532.67,0.00011097,2]
[344999619,1733915432991,-500.0,0.00011097,2]
[344999621,1733915433001,-500.0,0.00011097,2]
[344999623,1733915433011,-500.0,0.00011097,2]
[344999624,1733915433020,-500.0,0.00011097,2]
[344999625,1733915433030,-500.0,0.00011097,2]
[344999626,1733915433244,-500.0,0.00011097,2]
[344999627,1733915433255,-500.0,0.00011097,2]
[344999628,1733915433266,-500.0,0.00011097,2]
[344999629,1733915433276,-633.07,0.00011097,2]
[344999630,1733915433286,-557.48,0.00011097,2]
[344999631,1733915433297,-537.94,0.00011097,2]
[344999632,1733915433307,-500.0,0.00011097,2]
[344999633,1733915433318,-500.0,0.00011097,2]
[344999634,1733915433328,-500.0,0.00011097,2]
[344999635,1733915433338,-927.13,0.00011097,2]
[344999636,1733915433347,-500.0,0.00011097,2]
[344999637,1733915433358,-500.0,0.00011097,2]
[344999638,1733915433368,-500.0,0.00011097,2]
[344999639,1733915433378,-500.0,0.00011097,2]
[344999640,1733915433387,-500.0,0.00011097,2]
[344999641,1733915433397,-500.0,0.00011097,2]
[344999642,1733915433407,-500.0,0.00011097,2]
[344999643,1733915433417,-500.0,0.00011097,2]
[344999644,1733915433426,-500.0,0.00011097,2]
[344999645,1733915433436,-294.15555,0.00011097,2]
[344999646,1733915433446,-500.0,0.00011097,2]
[344999647,1733915433456,-201.43,0.00011097,2]
[344999648,1733915433466,-500.0,0.00011097,2]
[344999649,1733915433475,-500.0,0.00011097,2]
[344999650,1733915433485,-500.0,0.00011097,2]
[344999651,1733915433494,-500.0,0.00011097,2]
[344999652,1733915433505,-500.0,0.00011097,2]
[344999653,1733915433515,-500.0,0.00011097,2]
[344999654,1733915433524,-591.84,0.00011097,2]
[344999655,1733915433534,-500.0,0.00011097,2]
[344999656,1733915433546,-500.0,0.00011097,2]
[344999657,1733915433556,-500.0,0.00011097,2]
[344999658,1733915433565,-500.0,0.00011097,2]
[344999659,1733915433575,-500.0,0.00011097,2]
[344999660,1733915433587,-500.0,0.00011097,2]
[344999661,1733915433597,-500.0,0.00011097,2]
[344999662,1733915433607,-500.0,0.00011097,2]
[344999663,1733915433617,-500.0,0.00011097,2]
[344999664,1733915433626,-500.0,0.00011097,2]
[344999665,1733915433637,-500.0,0.00011097,2]
[344999666,1733915433647,-500.0,0.00011097,2]
[344999667,1733915433656,-500.0,0.00011097,2]
[344999668,1733915433666,-500.0,0.00011097,2]
[344999669,1733915433676,-500.0,0.00011097,2]
[344999670,1733915433686,-500.0,0.00011097,2]
[344999671,1733915433695,-500.0,0.00011097,2]
[344999672,1733915433705,-500.0,0.00011097,2]
[344999673,1733915433715,-500.0,0.00011097,2]
[344999674,1733915433724,-500.0,0.00011097,2]
[344999675,1733915433734,-500.0,0.00011097,2]
[344999676,1733915433744,-500.0,0.00011097,2]
[344999677,1733915433754,-500.0,0.00011097,2]
[344999678,1733915433763,-500.0,0.00011097,2]
[344999679,1733915433772,-500.0,0.00011097,2]
[344999680,1733915433781,-175.68,0.00011097,2]
[344999681,1733915433791,-500.0,0.00011097,2]
[344999682,1733915433801,-418.84350321,0.00011097,2]
[344999683,1733915433810,-500.0,0.00011097,2]
[344999684,1733915433820,-500.0,0.00011097,2]
[344999685,1733915433829,-500.0,0.00011097,2]
[344999686,1733915433839,-500.0,0.00011097,2]
[344999687,1733915433848,-500.0,0.00011097,2]
[344999688,1733915433857,-500.0,0.00011097,2]
[344999689,1733915433867,-500.69168911,0.00011097,2]
[344999690,1733915433877,-500.0,0.00011097,2]
[344999691,1733915433888,-500.0,0.00011097,2]
[344999692,1733915433898,-500.0,0.00011097,2]
[344999693,1733915433908,-500.0,0.00011097,2]
[344999694,1733915433918,-500.0,0.00011097,2]
[344999695,1733915433928,-500.0,0.00011097,2]
[344999696,1733915433937,-500.0,0.00011097,2]
[344999697,1733915433947,-500.0,0.00011097,2]
[344999698,1733915433958,-569.9,0.00011097,2]
[344999699,1733915433967,-500.0,0.00011097,2]
[344999700,1733915433986,-500.0,0.00011097,2]
[344999701,1733915433997,-500.0,0.00011097,2]
[344999702,1733915434007,-500.0,0.00011097,2]
[344999703,1733915434017,-500.0,0.00011097,2]
[344999704,1733915434028,-500.0,0.00011097,2]
[344999705,1733915434038,-506.47833856,0.00011097,2]
[344999706,1733915434048,-455.82927554,0.00011097,2]
[344999707,1733915434057,-500.0,0.00011097,2]
[344999708,1733915434067,-500.0,0.00011097,2]
[344999709,1733915434077,-500.0,0.00011097,2]
[344999710,1733915434086,-500.0,0.00011097,2]
[344999711,1733915434096,-500.0,0.00011097,2]
[344999712,1733915434105,-500.0,0.00011097,2]
[344999713,1733915434115,-500.0,0.00011097,2]
[344999714,1733915434126,-500.0,0.00011097,2]
[344999715,1733915434145,-500.0,0.00011097,2]
[344999716,1733915434158,-446.33,0.00011097,2]
[344999717,1733915434168,-1195.45,0.00011097,2]
[344999718,1733915434178,-1195.45,0.00011097,2]
[344999719,1733915434187,-1195.45,0.00011097,2]
[344999720,1733915434197,-1195.45,0.00011097,2]
[344999721,1733915434207,-1195.45,0.00011097,2]
[344999722,1733915434216,-1195.45,0.00011097,2]
[344999723,1733915434226,-1195.45,0.00011097,2]
[344999724,1733915434236,-1195.45,0.00011097,2]
[344999725,1733915434246,-500.0,0.00011097,2]
[344999726,1733915434256,-1195.45,0.00011097,2]
[344999727,1733915434266,-182.98,0.00011097,2]
[344999728,1733915434276,-1195.45,0.00011097,2]
[344999729,1733915434286,-1195.45,0.00011097,2]
[344999730,1733915434295,-500.0,0.00011097,2]
[344999731,1733915434305,-500.0,0.00011097,2]
[344999732,1733915434314,-500.0,0.00011097,2]
[344999733,1733915434324,-500.0,0.00011097,2]
[344999734,1733915434334,-547.8,0.00011097,2]
[344999735,1733915434343,-500.0,0.00011097,2]
[344999736,1733915434353,-266.55,0.00011097,2]
[344999737,1733915434363,-500.0,0.00011097,2]
[344999738,1733915434373,-500.0,0.00011097,2]
[344999739,1733915434383,-500.0,0.00011097,2]
[344999740,1733915434394,-500.0,0.00011097,2]
[344999741,1733915434405,-254.01,0.00011097,2]
[344999742,1733915434414,-500.0,0.00011097,2]
[344999743,1733915434424,-500.0,0.00011097,2]
[344999744,1733915434433,-500.0,0.00011097,2]
[344999745,1733915434443,-223.14476137,0.00011097,2]
[344999746,1733915434453,-500.0,0.00011097,2]
[344999747,1733915434463,-500.0,0.00011097,2]
[344999748,1733915434473,-500.0,0.00011097,2]
[344999749,1733915434483,-500.0,0.00011097,2]
[344999750,1733915434492,-345.76,0.00011097,2]
[344999751,1733915434505,-500.0,0.00011097,2]
[344999752,1733915434515,-500.0,0.00011097,2]
[344999753,1733915434524,-500.0,0.00011097,2]
[344999754,1733915434534,-500.0,0.00011097,2]
[344999755,1733915434544,-500.0,0.00011097,2]
[344999756,1733915434554,-500.0,0.00011097,2]
[344999757,1733915434564,-500.0,0.00011097,2]
[344999758,1733915434576,-500.0,0.00011097,2]
[344999759,1733915434586,-500.0,0.00011097,2]
[344999760,1733915434596,-516.0,0.00011097,2]
[344999761,1733915434605,-565.73018433,0.00011097,2]
[344999762,1733915434615,-500.0,0.00011097,2]
[344999763,1733915434624,-528.2,0.00011097,2]
[344999764,1733915434635,-500.0,0.00011097,2]
[344999765,1733915434645,-500.0,0.00011097,2]
[344999766,1733915434654,-500.0,0.00011097,2]
[344999767,1733915434664,-500.0,0.00011097,2]
[344999768,1733915434673,-500.0,0.00011097,2]
[344999769,1733915434682,-500.0,0.00011097,2]
[344999770,1733915434691,-500.0,0.00011097,2]
[344999771,1733915434701,-500.0,0.00011097,2]
[344999772,1733915434711,-500.0,0.00011097,2]
[344999773,1733915434720,-500.0,0.00011097,2]
[344999774,1733915434730,-500.0,0.00011097,2]
[344999775,1733915434739,-500.0,0.00011097,2]
[344999776,1733915434748,-500.0,0.00011097,2]
[344999777,1733915434758,-500.0,0.00011097,2]
[344999778,1733915434768,-500.0,0.00011097,2]
[344999779,1733915434779,-500.0,0.00011097,2]
[344999780,1733915434789,-500.0,0.00011097,2]
[344999781,1733915434799,-500.0,0.00011097,2]
[344999782,1733915434809,-500.0,0.00011097,2]
[344999783,1733915434818,-500.0,0.00011097,2]
[344999784,1733915434828,-500.0,0.00011097,2]
[344999785,1733915434838,-500.0,0.00011097,2]
[344999786,1733915434848,-500.0,0.00011097,2]
[344999787,1733915434857,-256.02,0.00011097,2]
[344999788,1733915434866,-500.0,0.00011097,2]
[344999789,1733915434876,-500.0,0.00011097,2]
[344999790,1733915434887,-415.13,0.00011097,2]
[344999791,1733915434898,-500.0,0.00011097,2]
[344999792,1733915434908,-500.0,0.00011097,2]
[344999793,1733915434917,-500.0,0.00011097,2]
[344999794,1733915434926,-347.24074048,0.00011097,2]
[344999795,1733915434936,-500.0,0.00011097,2]
[344999796,1733915434946,-500.0,0.00011097,2]
[344999797,1733915434955,-500.0,0.00011097,2]
[344999798,1733915434965,-500.0,0.00011097,2]
[344999799,1733915434976,-500.0,0.00011097,2]
[344999800,1733915434985,-500.0,0.00011097,2]
[344999801,1733915434994,-500.0,0.00011097,2]
[344999802,1733915435005,-500.0,0.00011097,2]
[344999803,1733915435015,-500.0,0.00011097,2]
[344999804,1733915435025,-500.0,0.00011097,2]
[344999805,1733915435035,-500.0,0.00011097,2]
[344999806,1733915435045,-500.0,0.00011097,2]
[344999807,1733915435055,-500.0,0.00011097,2]
[344999808,1733915435064,-500.0,0.00011097,2]
[344999809,1733915435074,-247.51,0.00011097,2]
[344999810,1733915435083,-500.0,0.00011097,2]
[344999811,1733915435093,-500.0,0.00011097,2]
[344999812,1733915435103,-500.0,0.00011097,2]
[344999813,1733915435112,-500.0,0.00011097,2]
[344999814,1733915435122,-500.0,0.00011097,2]
[344999815,1733915435132,-514.69,0.00011097,2]
[344999816,1733915435142,-500.0,0.00011097,2]
[344999817,1733915435151,-500.0,0.00011097,2]
[344999818,1733915435161,-284.66,0.00011097,2]
[344999819,1733915435171,-599.54489556,0.00011097,2]
[344999820,1733915435181,-500.0,0.00011097,2]
[344999821,1733915435191,-268839.85894484,0.00011098,2]
[344999824,1733915438438,-9056.62056156,0.00011098,2]
[344999825,1733915438450,-49221.81988263,0.00011098,2]
[344999826,1733915438606,-41118.09,0.00011098,2]
[344999839,1733915440517,-507.70200276,0.00011098,2]
[344999840,1733915440667,-455576.7532384,0.00011098,2]
[344999841,1733915440679,-86624.02006057,0.00011098,2]
[344999842,1733915440691,-44943.79759901,0.00011098,2]
[344999843,1733915440702,-216450.0,0.00011098,2]
[344999844,1733915440714,-2713.36172346,0.00011098,2]
[344999845,1733915440725,-556.30237569,0.00011098,2]
[344999846,1733915440736,-3984.64728541,0.00011098,2]
[344999847,1733915440748,-80432.54021795,0.00011098,2]
[344999848,1733915440759,-61006.4308138,0.00011098,2]
[344999849,1733915440771,-287606.23567421,0.00011098,2]
[344999850,1733915440782,-374.07477111,0.00011098,2]
[344999851,1733915440809,-1119.3106602,0.00011098,2]
[344999852,1733915440856,-660.85336213,0.00011098,2]
[344999853,1733915440868,-9379.9224,0.00011098,2]
[344999872,1733915443436,-1202.4,0.00011098,2]
[344999875,1733915443468,-407.66173791,0.00011098,2]
[344999880,1733915443492,-4620.51884975,0.00011098,2]
[344999904,1733915443700,-11586.98330896,0.00011098,2]
[344999906,1733915443710,-11613.01669104,0.00011098,2]
[344999908,1733915443722,-2976.08059802,0.00011098,2]
[344999912,1733915443846,-1168.1499999,0.00011098,2]
[344999913,1733915443857,-827.930001,0.00011098,2]
[344999914,1733915443869,-2240.1999986,0.00011098,2]
[344999925,1733915446482,-1015.19210015,0.00011098,2]
[344999926,1733915446624,-361.1400015,0.00011098,2]
[344999927,1733915446769,-8979.21789578,0.00011098,2]
[344999931,1733915790243,1699.55539555,0.0001021,9]
[344999932,1733915790275,3300.44460445,0.0001021,9]
[344999933,1733915855000,1049.61,8.379e-05,2]
[344999934,1733915912973,5000.0,0.0001002,7]
[344999972,1733916631732,-525.44500493,9.88e-05,2]
[344999973,1733916631875,-5379.03298888,9.88e-05,2]
[344999974,1733916631885,-426.23102063,0.0001,2]
[344999975,1733916631895,-250.0,0.00010053,2]
[344999976,1733916631905,-697.9,0.00010233,2]
[344999977,1733916631915,-250.0,0.00010246,2]
[344999978,1733916631925,-1000.0,0.00010333,2]
[344999979,1733916631934,-361.429,0.0001055,2]
[344999980,1733916631944,-150.0,0.000106,2]
[344999981,1733916631953,-167.03,0.00010606,2]
[344999982,1733916631963,-300.0,0.00010642,2]
[344999983,1733916631977,-1049.61,0.00010643,2]
[344999984,1733916631988,-150.0,0.00010678,2]
[344999985,1733916631998,-300.96,0.000107,2]
[344999986,1733916632008,-150.0,0.000107,2]
[344999987,1733916632018,-972.37,0.000107,2]
[344999988,1733916632028,-435.45,0.000108,2]
[344999989,1733916632040,-1282.94,0.000108,2]
[344999990,1733916632051,-150.0,0.00010852,2]
[344999991,1733916632060,-877.37786596,0.00010934,2]
[344999993,1733916632069,-150.0,0.00010959,2]
[344999994,1733916632079,-1862.786,0.00010997,2]
[344999995,1733916632090,-175.66563639,0.00010997,2]
[344999996,1733916632104,-150.0,0.00010997,2]
[344999997,1733916632113,-7261.67831151,0.00010998,2]
[344999998,1733916632125,-29710.30448849,0.00010998,2]
[344999999,1733916632134,-1000.0,0.00010998,2]
[345000000,1733916632144,-2500.0,0.00010998,2]
[345000001,1733916632154,-50000.0,0.00011,4]
[345000002,1733916632164,-50000.0,0.00011,4]
[345000003,1733916632174,-301.01,0.00011,2]
[345000004,1733916632183,-200.0,0.00011011,2]
[345000005,1733916632192,-647.53,0.00011097,2]
[345000006,1733916632202,-647.53,0.00011097,2]
[345000007,1733916632212,-647.53,0.00011097,2]
[345000008,1733916632221,-647.53,0.00011097,2]
[345000009,1733916632231,-647.53,0.00011097,2]
[345000010,1733916632240,-647.53,0.00011097,2]
[345000011,1733916632249,-647.53,0.00011097,2]
[345000012,1733916632258,-647.53,0.00011097,2]
[345000013,1733916632268,-647.53,0.00011097,2]
[345000014,1733916632277,-647.53,0.00011097,2]
[345000015,1733916632288,-647.53,0.00011097,2]
[345000016,1733916632297,-500.0,0.00011097,2]
[345000017,1733916632307,-500.0,0.00011097,2]
[345000019,1733916632316,-337.82,0.00011097,2]
[345000020,1733916632325,-500.0,0.00011097,2]
[345000021,1733916632335,-26393.03550652,0.00011098,2]
[345000022,1733916632368,-359.63859129,0.00011098,2]
[345000025,1733916637559,-7654.46923977,0.00011098,2]
[345000026,1733916637717,-3004.60843179,0.00011098,2]
[345000027,1733916637728,-3700.62169397,0.00011098,2]
[345000028,1733916637740,-24498.02173666,0.00011098,2]
[345000029,1733916637872,-480.67123095,0.00011098,2]
[345000030,1733916637883,-5264.05656336,0.00011098,2]
[345000031,1733916637892,-478.86313889,0.00011098,2]
[345000032,1733916637907,-98373.50479214,0.00011098,2]
[345000033,1733916637916,-38232.2947628,0.00011098,2]
[345000194,1733916639782,-3223.44407447,0.00011098,2]
[345000196,1733916639796,-1845.85271311,0.00011098,2]
[345000202,1733916639843,-2943.02318066,0.00011098,2]
[345000204,1733916639855,-3903.01377774,0.00011098,2]
[345000207,1733916639867,-48967.41370655,0.00011098,2]
[345000209,1733916639879,-1027.43750262,0.00011098,2]
[345000211,1733916639891,-1363.68834929,0.00011098,2]
[345000224,1733916640011,-54038.40693854,0.00011098,2]
[345000226,1733916640024,-3872.62979998,0.00011098,2]
[345000228,1733916640036,-7459.2243898,0.00011098,2]
[345000564,1733916642973,-663.72663807,0.00011098,2]
[345000570,1733916643012,-11616.38348601,0.00011098,2]
[345000572,1733916643024,-2267.62196437,0.00011098,2]
[345000575,1733916643050,-806.4349699,0.00011098,2]
[345000580,1733916643087,-33802.29300382,0.00011098,2]
[345000614,1733916643263,-847.86603525,0.00011098,2]
[345000621,1733916643322,-102874.49704264,0.00011098,2]
[345000848,1733916646067,-392.00943766,0.00011098,2]
[345000849,1733916646077,-796.520624,0.00011098,2]
[345000850,1733916646201,-113512.5103334,0.00011098,2]
[345000851,1733916646217,-326.38951779,0.00011098,2]
[345000852,1733916646228,-318738.91383802,0.00011098,2]
[345000853,1733916646238,-2000.0,0.00011098,2]
[345000854,1733916646247,-200.0,0.00011098,2]
[345000855,1733916646256,-2000.0,0.00011098,2]
[345000856,1733916646265,-200.0,0.00011098,2]
[345000857,1733916646275,-2000.0,0.00011098,2]
[345000858,1733916646284,-200.0,0.00011098,2]
[345000859,1733916646294,-3000.0,0.00011098,2]
[345000860,1733916646305,-2000.0,0.00011098,2]
[345000861,1733916646315,-200.0,0.00011098,2]
[345000862,1733916646325,-1000.0,0.00011099,2]
[345000863,1733916646335,-1000.0,0.00011099,2]
[345000864,1733916646344,-647.53,0.00011099,2]
[345000865,1733916646354,-647.53,0.00011099,2]
[345000866,1733916646363,-647.53,0.00011099,2]
[345000867,1733916646373,-647.53,0.00011099,2]
[345000868,1733916646383,-647.53,0.00011099,2]
[345000869,1733916646394,-647.53,0.00011099,2]
[345000870,1733916646404,-647.53,0.00011099,2]
[345000871,1733916646414,-647.53,0.00011099,2]
[345000872,1733916646424,-647.53,0.00011099,2]
[345000873,1733916646434,-647.53,0.00011099,2]
[345000874,1733916646444,-647.53,0.00011099,2]
[345000876,1733916646454,-647.53,0.00011099,2]
[345000878,1733916646463,-647.69784622,0.00011099,2]
[345000880,1733916646473,-888.5,0.00011099,2]
[345000882,1733916646483,-644462.73142056,0.00011099,2]
[345000884,1733916646495,-1105.60172602,0.00011099,2]
[345000887,1733916646600,-1197.452545,0.00011099,2]
[345000896,1733916752020,944.64,8.622e-05,2]
[345000897,1733916882916,179.34,8.29e-05,2]
[345000901,1733917690218,788.2262335,8.219e-05,2]
[345000902,1733917690240,109.1737665,8.219e-05,2]
[345000903,1733917813938,179.34,8.062e-05,2]
[345000916,1733917831887,-2508.82839489,0.0001,5]
[345000917,1733917831899,-8051.17160511,0.0001,5]
[345000918,1733917831909,-1000.0,0.00010065,2]
[345000919,1733917831919,-558.32,0.00010078,2]
[345000920,1733917831928,-200.0,0.00010114,2]
[345000921,1733917831937,-250.0,0.00010187,2]
[345000922,1733917831948,-1275.96,0.00010251,2]
[345000923,1733917831958,-250.0,0.00010269,2]
[345000924,1733917831968,-366.8,0.00010313,2]
[345000925,1733917831978,-897.4,0.0001048,2]
[345000926,1733917831988,-361.195,0.0001055,2]
[345000927,1733917831998,-76222.0,0.00010661,2]
[345000928,1733917832008,-150.0,0.00010767,2]
[345000929,1733917832017,-7026.68426193,0.00010988,2]
[345000930,1733917832027,-3000.0,0.0001099,2]
[345000931,1733917832036,-200.0,0.00010992,2]
[345000932,1733917832046,-1490.229,0.00010997,2]
[345000933,1733917832055,-223.17657125,0.00010999,2]
[345000934,1733917832064,-500.0,0.00010999,2]
[345000935,1733917832074,-500.0,0.00010999,2]
[345000936,1733917832083,-383.86513756,0.00010999,2]
[345000937,1733917832092,-500.0,0.00010999,2]
[345000938,1733917832102,-154.16065193,0.00010999,2]
[345000939,1733917832111,-500.0,0.00010999,2]
[345000940,1733917832120,-500.0,0.00010999,2]
[345000941,1733917832129,-500.0,0.00010999,2]
[345000942,1733917832140,-493.17892431,0.00010999,2]
[345000943,1733917832149,-507.29,0.00010999,2]
[345000944,1733917832158,-500.82935314,0.00010999,2]
[345000945,1733917832168,-500.0,0.00010999,2]
[345000946,1733917832177,-500.0,0.00010999,2]
[345000947,1733917832187,-500.0,0.00010999,2]
[345000948,1733917832197,-500.0,0.00010999,2]
[345000949,1733917832206,-500.0,0.00010999,2]
[345000950,1733917832215,-500.0,0.00010999,2]
[345000951,1733917832225,-500.0,0.00010999,2]
[345000952,1733917832235,-500.0,0.00010999,2]
[345000953,1733917832244,-500.0,0.00010999,2]
[345000954,1733917832254,-500.0,0.00010999,2]
[345000955,1733917832263,-14657.51660347,0.00011,2]
[345000956,1733917832272,-31918.69581102,0.00011,2]
[345000957,1733917832281,-200.0,0.0001101,2]
[345000958,1733917832291,-150.0,0.00011037,2]
[345000959,1733917832300,-417.49981898,0.00011073,2]
[345000960,1733917832309,-500.0,0.00011073,2]
[345000961,1733917832319,-320.96333623,0.00011095,2]
[345000962,1733917832329,-500.0,0.00011095,2]
[345000963,1733917832338,-500.0,0.00011095,2]
[345000964,1733917832348,-500.0,0.00011095,2]
[345000965,1733917832357,-500.0,0.00011095,2]
[345000966,1733917832367,-500.0,0.00011095,2]
[345000967,1733917832377,-500.0,0.00011095,2]
[345000968,1733917832388,-500.0,0.00011095,2]
[345000969,1733917832398,-500.0,0.00011095,2]
[345000970,1733917832408,-500.0,0.00011095,2]